bitfinex/quotes_SOLUSD_20250722
["timestamp","ask_amount","ask_price","bid_price","bid_amount"]
[1753216368066,0.06,200.51,200.48,0.69]
[1753216368859,5.12972733,200.5,200.48,0.69]
[1753216369279,0.14216157,200.5,200.48,0.69]
[1753216369650,5.12977154,200.5,200.48,0.69]
[1753216370758,5.12977154,200.5,200.45,54.93]
[1753216370956,0.14216157,200.48,200.46,0.69]
[1753216371189,0.14216157,200.48,200.45,76.41]
[1753216371390,5.37847177,200.48,200.45,50.41]
[1753216371565,5.37847177,200.48,200.45,51.1]
[1753216372303,0.14216157,200.46,200.45,50.41]
[1753216372464,22.16315574,200.46,200.45,21.51]
[1753216372664,22.16315574,200.46,200.45,0.03]
[1753216372971,27.15168212,200.46,200.45,0.03]
[1753216373370,21.91537192,200.46,200.45,0.03]
[1753216373681,21.91537192,200.46,200.45,0.72]
[1753216374378,27.15168212,200.46,200.45,0.03]
[1753216379275,27.81168212,200.46,200.45,0.03]
[1753216380197,21.91537192,200.46,200.45,0.03]
[1753216380602,27.15168212,200.46,200.45,0.03]
[1753216383795,21.91537192,200.46,200.45,0.03]
[1753216383984,21.91537192,200.46,200.45,0.72]
[1753216384388,4.98753117,200.5,200.45,0.72]
[1753216384587,21.77294301,200.48,200.46,0.69]
[1753216384890,0.14216157,200.47,200.45,0.03]
[1753216385591,0.14216157,200.47,200.46,0.69]
[1753216385985,0.14216157,200.47,200.45,0.03]
[1753216386383,5.37847177,200.47,200.45,0.03]
[1753216386695,4.98852638,200.46,200.45,0.03]
[1753216387003,27.15168212,200.46,200.45,0.03]
[1753216387499,21.91537192,200.46,200.45,0.03]
[1753216393505,4.98834753,200.47,200.45,0.72]
[1753216394310,5.1305091,200.47,200.46,0.69]
[1753216395580,0.14216157,200.47,200.46,0.69]
[1753216395904,5.13043911,200.47,200.46,0.69]
[1753216396206,5.13043911,200.47,200.45,0.03]
[1753216396382,5.13043911,200.47,200.46,0.69]
[1753216396581,0.14216157,200.47,200.46,0.69]
[1753216397906,0.14216157,200.49,200.46,26.69]
[1753216398094,0.14216157,200.49,200.47,0.66]
[1753216398298,0.14216157,200.49,200.46,26.0]
[1753216398498,10.28362538,200.51,200.48,0.66]
[1753216398688,0.14216157,200.5,200.49,0.66]
[1753216400014,5.12969274,200.5,200.49,0.66]
[1753216401411,10.36600294,200.5,200.47,21.38]
[1753216401587,10.36600294,200.5,200.47,22.04]
[1753216402190,10.36600294,200.5,200.48,0.66]
[1753216402924,5.12969274,200.5,200.49,0.66]
[1753216403085,0.06,200.51,200.49,13.9961102]
[1753216403293,0.06,200.51,200.5,5.8963102]
[1753216403514,0.06,200.52,200.5,34.7963102]
[1753216403824,0.06,200.53,200.51,27.77503844]
[1753216404024,0.06,200.57,200.54,26.0]
[1753216404186,0.06,200.57,200.54,65.12284655]
[1753216404391,0.06,200.57,200.55,6.3893]
[1753216404608,0.06,200.58,200.56,27.1149141]
[1753216404910,0.06,200.58,200.57,5.2363102]
[1753216405209,0.06,200.58,200.57,34.7963102]
[1753216405433,0.06,200.58,200.57,53.2763102]
[1753216406223,0.06,200.58,200.57,58.26210069]
[1753216406420,0.06,200.58,200.57,48.04]
[1753216406790,0.06,200.58,200.57,53.2763102]
[1753216412214,0.06,200.58,200.57,82.1763102]
[1753216412539,0.06,200.58,200.57,56.1763102]
[1753216413012,0.06,200.58,200.57,55.5163102]
[1753216413393,0.06,200.58,200.57,56.1763102]
[1753216414802,0.06,200.58,200.54,26.0]
[1753216415122,0.06,200.58,200.57,5.8963102]
[1753216417219,0.06,200.58,200.57,27.2563102]
[1753216418502,0.06,200.58,200.57,32.24210069]
[1753216418802,0.06,200.58,200.57,33.83870069]
[1753216419823,0.06,200.58,200.57,5.8963102]
[1753216420000,0.06,200.58,200.57,27.2563102]
[1753216420394,0.06,200.58,200.57,32.24210069]
[1753216422812,0.06,200.58,200.57,61.14210069]
[1753216430524,0.06,200.58,200.57,50.26]
[1753216430724,0.89216157,200.58,200.53,26.68]
[1753216431027,0.89216157,200.58,200.56,5.2363102]
[1753216431215,0.20216157,200.58,200.57,21.36]
[1753216431712,0.20216157,200.58,200.57,27.2763102]
[1753216431713,0.06,200.58,200.57,27.2763102]
[1753216432603,0.06,200.58,200.57,32.29210069]
[1753216434124,0.06,200.58,200.57,61.19210069]
[1753216438209,1e-08,200.6,200.59,26.0]
[1753216438417,0.06,200.63,200.62,26.0]
[1753216438618,0.06,200.63,200.62,52.5763102]
[1753216438814,0.06,200.63,200.62,53.2563102]
[1753216439806,0.06,200.63,200.62,58.2408581]
[1753216440213,0.06,200.63,200.62,52.5763102]
[1753216440628,0.06,200.63,200.62,58.2408581]
[1753216441615,0.06,200.63,200.62,87.14085809]
[1753216447336,5.08209902,200.72,200.62,87.14085809]
[1753216447337,1e-08,200.72,200.69,15.11216157]
[1753216447523,1e-08,200.72,200.71,5.63598691]
[1753216447844,1e-08,200.72,200.71,47.73967671]
[1753216448355,1e-08,200.72,200.71,52.97598691]
[1753216448535,1e-08,200.72,200.71,58.63829969]
[1753216449142,1e-08,200.72,200.71,32.63829969]
[1753216449830,1e-08,200.72,200.71,21.73967671]
[1753216450220,1e-08,200.72,200.71,31.95829969]
[1753216450443,1e-08,200.72,200.71,32.63829969]
[1753216451539,1e-08,200.72,200.71,31.95829969]
[1753216452122,1e-08,200.72,200.71,26.97598691]
[1753216452336,0.69000001,200.72,200.71,21.73967671]
[1753216452530,0.83216158,200.72,200.71,21.73967671]
[1753216452951,0.83216158,200.72,200.71,21.34]
[1753216455521,22.59891011,200.72,200.71,21.34]
[1753216455727,0.14216157,200.71,200.7,2.97600307]
[1753216455926,0.83216157,200.71,200.7,24.31600307]
[1753216457643,5.81447435,200.71,200.7,24.31600307]
[1753216458531,17.61684554,200.71,200.7,24.31600307]
[1753216458733,0.84216157,200.71,200.7,24.31600307]
[1753216459421,1e-08,200.72,200.7,24.31600307]
[1753216459739,0.14216158,200.72,200.7,24.31600307]
[1753216460325,0.84216158,200.72,200.7,24.31600307]
[1753216460738,0.84216157,200.71,200.7,24.31600307]
[1753216460938,17.62684554,200.71,200.7,24.31600307]
[1753216461636,17.62684554,200.71,200.7,2.97600307]
[1753216461839,17.62684554,200.71,200.7,24.31600307]
[1753216462817,27.84546852,200.71,200.7,24.31600307]
[1753216464644,35.66076852,200.71,200.7,2.97600307]
[1753216464852,40.89707872,200.71,200.7,2.97600307]
[1753216465170,16.92684554,200.7,200.64,21.34]
[1753216465326,16.92684554,200.64,200.63,21.34]
[1753216465533,17.62684554,200.64,200.63,21.34]
[1753216467023,27.84720677,200.64,200.63,21.34]
[1753216467427,27.84720677,200.64,200.6,0.03]
[1753216467740,16.92684554,200.62,200.6,21.37]
[1753216467944,0.84216157,200.62,200.6,21.37]
[1753216468529,0.84216157,200.61,200.6,21.37]
[1753216468735,22.61164191,200.61,200.6,21.37]
[1753216469660,17.62684554,200.61,200.6,0.03]
[1753216470756,27.84795211,200.61,200.6,0.03]
[1753216471558,17.62684554,200.61,200.6,0.03]
[1753216471741,22.46948034,200.61,200.6,0.03]
[1753216472060,27.84795211,200.61,200.6,0.03]
[1753216472441,16.78468397,200.61,200.6,0.03]
[1753216472642,16.92684554,200.61,200.6,0.03]
[1753216473160,17.62684554,200.61,200.6,0.03]
[1753216473361,22.86315574,200.61,200.6,0.03]
[1753216473534,27.84795211,200.61,200.6,0.03]
[1753216474058,22.86315574,200.61,200.6,0.03]
[1753216474941,27.84795211,200.61,200.6,0.03]
[1753216475472,33.08426231,200.61,200.6,0.03]
[1753216476344,16.92684554,200.6,200.57,0.03]
[1753216476540,22.16315574,200.58,200.57,0.03]
[1753216476747,27.14869766,200.58,200.57,0.03]
[1753216476945,27.84869766,200.58,200.57,0.03]
[1753216477347,22.61238746,200.58,200.57,0.03]
[1753216477682,27.84869766,200.58,200.57,0.03]
[1753216481473,16.92684554,200.57,200.56,2.98224674]
[1753216481661,22.86315574,200.57,200.56,2.98224674]
[1753216481874,22.86315574,200.57,200.55,0.03]
[1753216482055,4.98554192,200.58,200.49,0.2]
[1753216482056,16.92684554,200.55,200.49,0.2]
[1753216482256,22.16315574,200.53,200.49,0.2]
[1753216482473,16.92684554,200.53,200.49,0.2]
[1753216482651,27.84994075,200.53,200.49,0.2]
[1753216483183,21.91363055,200.53,200.49,0.2]
[1753216483476,27.14994075,200.53,200.49,0.92]
[1753216483781,27.84994075,200.53,200.49,0.2]
[1753216483983,22.86315574,200.53,200.49,0.2]
[1753216484155,27.84994075,200.53,200.49,0.2]
[1753216484772,16.78468397,200.53,200.51,0.72]
[1753216485077,22.02099417,200.53,200.49,0.2]
[1753216485273,22.16315574,200.53,200.49,0.92]
[1753216485953,27.84994075,200.53,200.49,0.92]
[1753216486274,27.84994075,200.53,200.49,0.2]
[1753216490572,33.08625095,200.53,200.49,0.2]
[1753216490757,16.92684554,200.52,200.49,0.2]
[1753216490963,27.39946594,200.5,200.49,0.2]
[1753216491152,32.38699711,200.5,200.49,0.2]
[1753216491362,16.92684554,200.49,200.45,0.03]
[1753216491693,22.16315574,200.46,200.45,0.03]
[1753216492163,22.87315574,200.46,200.45,0.03]
[1753216492565,44.21315574,200.46,200.45,0.03]
[1753216493097,49.20168212,200.46,200.45,0.03]
[1753216495487,16.92684554,200.45,200.43,0.03]
[1753216495697,22.16315574,200.44,200.43,0.03]
[1753216495993,22.87315574,200.44,200.43,0.03]
[1753216496292,16.92684554,200.43,200.42,0.03]
[1753216496491,44.21315574,200.43,200.42,0.03]
[1753216497280,54.438739,200.43,200.41,3.01515835]
[1753216497492,28.10946594,200.42,200.4,0.03]
[1753216497700,48.73946594,200.41,200.4,0.03]
[1753216497994,49.44946594,200.41,200.34,0.54]
[1753216498182,22.16315574,200.35,200.34,0.54]
[1753216498391,0.14216157,200.34,200.32,0.03]
[1753216498574,5.37847177,200.34,200.32,0.03]
[1753216499098,22.16315574,200.34,200.32,0.03]
[1753216499478,27.15467016,200.34,200.32,0.03]
[1753216499670,27.86467016,200.34,200.32,0.03]
[1753216500280,16.92684554,200.34,200.32,0.03]
[1753216500466,16.78468397,200.37,200.33,0.75]
[1753216500670,5.2363102,200.37,200.34,0.72]
[1753216500900,16.92684554,200.35,200.33,0.03]
[1753216501300,22.16315574,200.34,200.33,0.03]
[1753216501489,27.86467016,200.34,200.33,0.03]
[1753216502401,49.22467016,200.34,200.33,0.03]
[1753216503282,16.92684554,200.33,200.32,0.03]
[1753216503488,27.86491933,200.33,200.32,0.03]
[1753216503872,27.15491933,200.33,200.32,0.03]
[1753216504385,22.16315574,200.33,200.32,0.03]
[1753216504775,27.86491933,200.33,200.32,0.03]
[1753216505700,33.10122953,200.33,200.32,1e-08]
[1753216505900,33.10122953,200.33,200.3,1e-08]
[1753216506203,27.39946594,200.31,200.3,1e-08]
[1753216506496,48.75946594,200.31,200.3,1e-08]
[1753216506872,49.46946594,200.31,200.3,1e-08]
[1753216507293,42.92684554,200.3,200.28,0.03]
[1753216507472,42.92684554,200.3,200.28,0.75]
[1753216507473,5.37847177,200.3,200.28,0.75]
[1753216507886,22.02099417,200.29,200.28,0.75]
[1753216508290,16.78468397,200.29,200.28,0.75]
[1753216508489,22.02099417,200.29,200.28,0.75]
[1753216509877,0.14216157,200.29,200.28,0.75]
[1753216510498,16.78468397,200.31,200.28,0.75]
[1753216510690,0.14216157,200.3,200.29,0.72]
[1753216511413,16.78468397,200.33,200.29,14.1741102]
[1753216511612,16.78468397,200.34,200.3,0.72]
[1753216511782,0.14216157,200.33,200.31,0.72]
[1753216511978,0.14216157,200.33,200.32,0.72]
[1753216512179,5.37847177,200.33,200.3,0.72]
[1753216512392,16.92684554,200.31,200.3,0.72]
[1753216512587,0.14216157,200.31,200.3,0.72]
[1753216515104,5.13442356,200.31,200.3,0.72]
[1753216515307,10.37073376,200.31,200.3,0.72]
[1753216515687,0.14216157,200.31,200.3,0.72]
[1753216516395,5.13442356,200.31,200.3,0.72]
[1753216516902,0.14216157,200.31,200.3,0.72]
[1753216517304,16.78468397,200.3,200.29,8.2178]
[1753216517505,22.16315574,200.3,200.29,8.2178]
[1753216517701,22.16315574,200.3,200.29,8.9078]
[1753216517905,22.16315574,200.3,200.29,8.2178]
[1753216518098,22.16315574,200.3,200.29,8.9078]
[1753216518298,22.16315574,200.3,200.29,8.2178]
[1753216518505,22.16315574,200.3,200.29,8.9078]
[1753216519015,27.15566697,200.3,200.29,6.6176]
[1753216519187,27.15566697,200.3,200.29,0.03]
[1753216520912,27.85566697,200.3,200.29,0.03]
[1753216521509,33.09197717,200.3,200.29,0.03]
[1753216522717,54.45197717,200.3,200.29,0.03]
[1753216523005,33.09197717,200.3,200.29,1e-08]
[1753216523214,33.09197717,200.3,200.24,0.03]
[1753216523215,16.78468397,200.26,200.24,0.03]
[1753216523510,16.78468397,200.26,200.14,7.5887]
[1753216523511,0.14216157,200.23,200.14,7.5887]
[1753216523713,16.92684554,200.19,200.15,0.69]
[1753216523922,22.16315574,200.16,200.15,0.69]
[1753216524500,16.92684554,200.15,200.14,7.5887]
[1753216524704,22.16315574,200.15,200.14,8.2787]
[1753216525311,27.15940855,200.15,200.14,8.2787]
[1753216525696,22.16315574,200.15,200.14,8.2787]
[1753216526712,27.15940855,200.15,200.14,8.2787]
[1753216527226,27.15940855,200.15,200.12,0.69]
[1753216527227,10.37472458,200.15,200.12,0.69]
[1753216527513,10.37472458,200.15,200.09,8.3202]
[1753216527514,5.2363102,200.14,200.09,8.3202]
[1753216527808,0.14216157,200.15,200.09,8.3202]
[1753216528013,5.2363102,200.15,200.1,0.69]
[1753216528310,5.2363102,200.21,200.14,5.2363102]
[1753216528515,5.2363102,200.21,200.15,5.2363102]
[1753216528817,5.2363102,200.2,200.16,0.69]
[1753216529120,5.2363102,200.17,200.12,26.0]
[1753216529308,5.2363102,200.17,200.16,0.69]
[1753216529493,5.2363102,200.18,200.16,0.69]
[1753216529692,5.37847177,200.18,200.17,0.69]
[1753216530013,10.37401419,200.18,200.13,0.69]
[1753216530319,5.2363102,200.15,200.13,0.69]
[1753216530620,5.2363102,200.14,200.13,0.69]
[1753216530920,5.2363102,200.15,200.13,0.69]
[1753216531124,5.2363102,200.15,200.14,0.69]
[1753216531708,5.2363102,200.15,200.12,0.69]
[1753216531709,10.23261955,200.15,200.12,0.69]
[1753216531913,10.23261955,200.15,200.1,26.0]
[1753216531914,10.23261955,200.15,200.13,0.69]
[1753216532211,4.996027,200.16,200.14,0.69]
[1753216532408,5.2363102,200.15,200.14,0.69]
[1753216533010,0.14216157,200.17,200.1,36.23380893]
[1753216533309,5.69541212,200.19,200.1,36.23380893]
[1753216533310,22.02099417,200.18,200.15,0.69]
[1753216533515,22.02099417,200.18,200.12,5.2363102]
[1753216533516,22.02099417,200.18,200.16,0.69]
[1753216533707,16.92684554,200.18,200.17,0.69]
[1753216534417,0.14216157,200.2,200.17,0.69]
[1753216534616,5.2363102,200.21,200.17,0.69]
[1753216535120,22.02099417,200.22,200.17,0.69]
[1753216535315,5.2363102,200.2,200.18,0.69]
[1753216535518,5.2363102,200.2,200.19,0.69]
[1753216535687,21.77924128,200.22,200.19,0.69]
[1753216535887,5.2363102,200.2,200.19,0.69]
[1753216536516,5.37847177,200.2,200.15,0.69]
[1753216536725,5.2363102,200.18,200.15,0.69]
[1753216536935,16.92684554,200.2,200.16,0.69]
[1753216537092,24.95102842,200.4,200.16,0.69]
[1753216537093,5.2363102,200.23,200.18,13.2199102]
[1753216537404,5.2363102,200.23,200.19,0.69]
[1753216537998,5.2363102,200.23,200.18,7.9836]
[1753216538217,5.2363102,200.21,200.18,7.9836]
[1753216538422,22.02099417,200.23,200.19,0.69]
[1753216538604,16.78468397,200.23,200.2,0.69]
[1753216538802,5.2363102,200.25,200.2,0.69]
[1753216539522,5.2363102,200.25,200.21,0.69]
[1753216539717,5.2363102,200.25,200.22,0.69]
[1753216539917,5.2363102,200.24,200.22,0.69]
[1753216540109,5.2363102,200.24,200.18,7.9836]
[1753216540110,5.2363102,200.23,200.19,0.69]
[1753216540423,5.2363102,200.23,200.18,7.9836]
[1753216540424,5.2363102,200.23,200.2,0.69]
[1753216542600,5.2363102,200.21,200.19,0.03]
[1753216542912,4.99426231,200.23,200.19,0.03]
[1753216542913,5.2363102,200.2,200.19,0.03]
[1753216543521,5.2363102,200.21,200.19,0.72]
[1753216543822,5.2363102,200.22,200.19,0.72]
[1753216544728,16.78468397,200.25,200.2,5.9263102]
[1753216544729,0.14216157,200.25,200.2,5.9263102]
[1753216545020,22.02099417,200.27,200.21,5.9263102]
[1753216545225,22.02099417,200.27,200.22,0.69]
[1753216545421,5.2363102,200.26,200.22,0.69]
[1753216545612,5.2363102,200.26,200.23,0.69]
[1753216546010,5.2363102,200.24,200.19,0.03]
[1753216546210,16.92684554,200.25,200.23,5.2363102]
[1753216546524,16.78468397,200.26,200.24,0.69]
[1753216546707,0.7,200.29,200.22,5.2363102]
[1753216546708,0.14216157,200.28,200.22,5.2363102]
[1753216546903,16.92684554,200.28,200.25,0.69]
[1753216547223,26.06,200.3,200.19,5.02521896]
[1753216547224,5.2363102,200.29,200.26,0.69]
[1753216547913,22.08099417,200.3,200.24,5.2363102]
[1753216548125,16.84468397,200.3,200.27,0.67]
[1753216548314,5.43847177,200.3,200.27,0.67]
[1753216548622,10.43107635,200.3,200.27,0.67]
[1753216549205,16.78468397,200.27,200.21,0.67]
[1753216549419,0.66,200.29,200.21,0.67]
[1753216549420,0.14216157,200.29,200.21,0.67]
[1753216549624,5.2363102,200.27,200.21,5.9063102]
[1753216549823,5.2363102,200.27,200.22,0.67]
[1753216550128,10.22965159,200.27,200.23,0.67]
[1753216550334,5.2363102,200.26,200.23,0.67]
[1753216550527,16.84468397,200.3,200.24,0.67]
[1753216550725,0.06,200.3,200.29,5.2363102]
[1753216550912,0.06,200.3,200.27,7.6868]
[1753216551228,0.06,200.3,200.28,0.67]
[1753216551805,0.06,200.3,200.29,0.67]
[1753216552525,0.06,200.3,200.29,5.9063102]
[1753216553132,0.06,200.3,200.29,10.89907069]
[1753216553331,0.06,200.3,200.29,5.9063102]
[1753216553626,5.2963102,200.3,200.27,7.6868]
[1753216554124,5.05251123,200.3,200.27,7.6868]
[1753216554324,5.05251123,200.3,200.24,21.34]
[1753216554325,16.78468397,200.27,200.24,21.34]
[1753216554630,16.78468397,200.24,200.19,21.37]
[1753216554817,5.2363102,200.22,200.19,22.04]
[1753216555019,5.2363102,200.23,200.19,22.04]
[1753216556026,10.23076294,200.23,200.19,22.04]
[1753216556537,5.2363102,200.2,200.19,21.37]
[1753216556936,5.2363102,200.2,200.19,0.03]
[1753216557515,22.16315574,200.2,200.19,0.03]
[1753216558124,27.15816073,200.2,200.19,0.03]
[1753216560941,27.81816073,200.2,200.19,0.03]
[1753216564935,22.58185053,200.2,200.19,0.03]
[1753216565125,27.81816073,200.2,200.19,0.03]
[1753216566227,30.33464297,200.2,200.19,0.03]
[1753216566430,25.09833277,200.2,200.19,0.03]
[1753216566637,30.33464297,200.2,200.19,0.03]
[1753216567233,27.15816073,200.2,200.19,0.03]
[1753216567551,27.81816073,200.2,200.19,0.03]
[1753216569355,27.15816073,200.2,200.19,0.03]
[1753216570861,0.66,200.26,200.19,0.7]
[1753216571062,4.99300978,200.28,200.21,5.2363102]
[1753216571250,4.99300978,200.28,200.22,0.67]
[1753216571251,5.2363102,200.26,200.22,0.67]
[1753216571562,5.2363102,200.26,200.23,0.67]
[1753216572059,5.2363102,200.25,200.23,0.67]
[1753216572543,5.2363102,200.25,200.21,32.416]
[1753216572544,5.2363102,200.25,200.21,6.416]
[1753216572744,5.2363102,200.24,200.21,7.086]
[1753216572947,5.2363102,200.26,200.22,0.67]
[1753216573163,5.2363102,200.26,200.23,0.67]
[1753216573362,5.2363102,200.26,200.24,0.67]
[1753216573550,5.2363102,200.26,200.21,11.41067427]
[1753216573861,22.02099417,200.27,200.25,0.67]
[1753216575657,5.2363102,200.27,200.25,0.67]
[1753216576363,0.20216157,200.29,200.26,0.67]
[1753216576564,5.2963102,200.29,200.26,0.67]
[1753216576755,5.2963102,200.29,200.23,34.1363102]
[1753216576756,0.06,200.29,200.27,0.67]
[1753216576947,0.06,200.29,200.28,0.67]
[1753216582757,0.06,200.29,200.28,5.9063102]
[1753216584068,0.06,200.29,200.28,10.89931998]
[1753216587457,0.06,200.29,200.28,5.66300978]
[1753216587747,0.06,200.29,200.28,0.67]
[1753216587962,0.06,200.29,200.27,1.6642]
[1753216588260,0.06,200.29,200.28,0.72]
[1753216589269,0.06,200.29,200.28,10.94931998]
[1753216589469,0.06,200.29,200.28,5.9563102]
[1753216589869,0.06,200.29,200.28,10.94931998]
[1753216590058,0.06,200.29,200.28,17.50332095]
[1753216592973,0.06,200.29,200.28,72.40332095]
[1753216596085,1e-08,200.29,200.28,98.34431512]
[1753216596277,1e-08,200.3,200.28,98.34431512]
[1753216596580,1e-08,200.3,200.29,62.4126204]
[1753216596879,0.06,200.34,200.29,62.4126204]
[1753216596880,0.06,200.34,200.32,55.92]
[1753216597079,0.06,200.34,200.33,33.63675014]
[1753216597380,0.06,200.34,200.33,64.27675014]
[1753216598562,0.06,200.34,200.33,34.35675014]
[1753216599077,0.06,200.34,200.33,55.36498655]
[1753216599263,0.06,200.34,200.33,54.8658102]
[1753216599463,0.06,200.34,200.33,21.3]
[1753216600278,0.06,200.34,200.33,22.02]
[1753216600457,0.06,200.34,200.33,27.2563102]
[1753216601267,0.06,200.34,200.33,21.3]
[1753216602758,0.77,200.34,200.33,21.3]
[1753216603282,10.99782462,200.34,200.33,21.3]
[1753216604880,0.06,200.34,200.33,21.3]
[1753216605085,0.06,200.34,200.33,27.2563102]
[1753216605467,0.06,200.34,200.33,32.24807379]
[1753216606280,1e-08,200.34,200.33,61.14807379]
[1753216607795,1e-08,200.34,200.33,68.77807379]
[1753216608986,1e-08,200.34,200.33,42.24176359]
[1753216609282,1e-08,200.34,200.33,61.14807379]
[1753216611978,1e-08,200.34,200.33,55.91176359]
[1753216612173,1e-08,200.34,200.33,61.14807379]
[1753216613985,1e-08,200.34,200.33,87.14807379]
[1753216614178,1e-08,200.34,200.33,86.42807379]
[1753216614379,1e-08,200.34,200.33,87.10807379]
[1753216619672,1e-08,200.34,200.33,61.10807379]
[1753216619874,1e-08,200.34,200.33,115.63175776]
[1753216620182,0.06,200.36,200.35,26.0]
[1753216620389,0.06,200.36,200.35,53.01543672]
[1753216620773,0.06,200.36,200.35,88.606702]
[1753216621300,0.06,200.36,200.35,31.73543672]
[1753216621481,5.9463102,200.36,200.33,7.63]
[1753216621800,5.2363102,200.34,200.33,7.63]
[1753216622097,5.8863102,200.34,200.33,21.28]
[1753216624207,10.87782462,200.34,200.33,21.28]
[1753216625588,5.8863102,200.34,200.33,21.28]
[1753216626097,10.87782462,200.34,200.33,21.28]
[1753216626289,5.8863102,200.34,200.33,21.28]
[1753216626690,5.8863102,200.34,200.33,21.31]
[1753216627195,0.06,200.34,200.33,21.31]
[1753216627581,5.9463102,200.34,200.33,21.31]
[1753216628280,0.71,200.34,200.33,21.31]
[1753216629495,0.06,200.34,200.33,21.31]
[1753216632800,0.06,200.34,200.33,32.21807379]
[1753216632999,0.06,200.34,200.33,32.71725014]
[1753216633878,0.06,200.34,200.33,27.48093994]
[1753216634101,0.06,200.34,200.33,32.21807379]
[1753216636912,0.06,200.34,200.33,61.11807379]
[1753216637118,0.06,200.34,200.33,56.1263102]
[1753216637296,0.06,200.34,200.33,50.21]
[1753216637497,0.06,200.34,200.33,60.43807379]
[1753216638206,0.06,200.34,200.33,28.93]
[1753216638207,0.76,200.34,200.33,28.93]
[1753216638410,0.76,200.34,200.33,50.21]
[1753216638710,5.9963102,200.34,200.33,21.31]
[1753216639205,0.76,200.34,200.33,21.31]
[1753216640311,27.91467016,200.34,200.33,0.03]
[1753216642304,16.92684554,200.33,200.28,1.80910153]
[1753216642496,5.37847177,200.29,200.28,1.80910153]
[1753216642692,6.07847177,200.29,200.28,1.80910153]
[1753216643696,11.07123226,200.29,200.28,1.80910153]
[1753216644807,0.7,200.29,200.28,1.80910153]
[1753216645011,6.07847177,200.29,200.28,1.80910153]
[1753216646323,0.84216157,200.29,200.28,1.80910153]
[1753216648619,11.07123226,200.29,200.28,1.80910153]
[1753216656334,27.85591623,200.29,200.28,1.80910153]
[1753216657631,27.85591623,200.29,200.28,1e-08]
[1753216658016,49.13591623,200.29,200.28,1e-08]
[1753216658633,0.14216157,200.27,200.24,0.03]
[1753216658939,22.16315574,200.25,200.24,0.03]
[1753216659429,27.85691354,200.25,200.24,0.03]
[1753216659932,31.84573876,200.25,200.24,0.03]
[1753216660614,43.90060334,200.25,200.24,0.03]
[1753216660934,49.13691354,200.25,200.24,0.03]
[1753216662339,27.85691354,200.25,200.24,0.03]
[1753216663329,31.69342094,200.27,200.24,0.03]
[1753216663639,5.2363102,200.31,200.25,5.2363102]
[1753216663840,10.28805145,200.34,200.28,5.2363102]
[1753216664133,10.28805145,200.34,200.24,0.52940071]
[1753216664134,5.2363102,200.33,200.27,5.9263102]
[1753216664613,0.14216157,200.33,200.28,5.9263102]
[1753216664818,21.83621409,200.34,200.29,5.9263102]
[1753216665030,0.06,200.34,200.32,5.2363102]
[1753216665230,0.06,200.34,200.33,0.69]
[1753216668342,0.06,200.34,200.33,11.41725014]
[1753216668845,0.06,200.34,200.33,11.39725014]
[1753216669429,0.06,200.34,200.33,26.67]
[1753216669627,0.06,200.34,200.33,36.89807379]
[1753216670023,0.06,200.34,200.33,31.9063102]
[1753216671349,0.06,200.34,200.33,26.67]
[1753216673129,0.06,200.34,200.33,31.66176359]
[1753216673350,0.06,200.34,200.33,36.89807379]
[1753216675542,0.06,200.34,200.33,26.67]
[1753216675847,0.06,200.34,200.33,58.15807379]
[1753216677445,0.06,200.34,200.33,47.93]
[1753216677633,0.06,200.34,200.33,58.15807379]
[1753216679039,0.06,200.34,200.33,52.92176359]
[1753216679437,0.06,200.34,200.33,58.15807379]
[1753216681466,0.06,200.34,200.33,58.65725014]